bitfinex/quotes_SOLUSD_20250418
["timestamp","ask_amount","ask_price","bid_price","bid_amount"]
[1744992149279,22.70356335,132.6,132.58,0.03]
[1744992149776,15.16195555,132.59,132.58,0.03]
[1744992150566,22.70356335,132.6,132.58,0.03]
[1744992151285,15.16195555,132.59,132.58,0.03]
[1744992151482,33.81160441,132.59,132.58,0.03]
[1744992151667,15.16195555,132.59,132.58,0.03]
[1744992152264,41.16195555,132.59,132.58,0.03]
[1744992153264,7.54204691,132.59,132.58,0.03]
[1744992153467,22.70361515,132.6,132.58,0.03]
[1744992153681,15.16195555,132.59,132.58,0.03]
[1744992154091,18.84684839,132.65,132.58,15.19195555]
[1744992154262,34.00880394,132.65,132.6,16.79265555]
[1744992154465,15.16195555,132.63,132.6,1.6307]
[1744992154793,79.49467059,132.65,132.6,1.6307]
[1744992155085,15.16195555,132.61,132.6,1.6307]
[1744992155384,22.70286498,132.61,132.6,1.6307]
[1744992155583,7.54090943,132.61,132.6,1.6307]
[1744992155796,15.16195555,132.63,132.6,1.6307]
[1744992155966,22.70002278,132.66,132.61,15.16195555]
[1744992156167,7.53806723,132.66,132.62,15.16195555]
[1744992156462,7.53806723,132.66,132.63,15.16195555]
[1744992156664,38.66946614,132.74,132.63,15.16195555]
[1744992156865,7.53522718,132.71,132.67,15.16195555]
[1744992157083,7.53352418,132.74,132.7,15.16195555]
[1744992157287,22.69547973,132.74,132.7,15.16195555]
[1744992157466,22.69547973,132.74,132.69,15.16195555]
[1744992159564,15.16195555,132.73,132.69,15.16195555]
[1744992159777,7.53352418,132.74,132.67,14.98]
[1744992159778,15.16195555,132.72,132.67,14.98]
[1744992160083,15.16195555,132.7,132.67,14.98]
[1744992160485,15.16195555,132.68,132.64,1.6455]
[1744992161394,15.16195555,132.67,132.64,1.6455]
[1744992161573,15.16195555,132.66,132.64,1.6455]
[1744992161773,15.16195555,132.66,132.63,14.98]
[1744992161989,15.16195555,132.65,132.63,14.98]
[1744992162179,15.16195555,132.64,132.61,1.5965]
[1744992162378,22.70048914,132.66,132.62,15.16195555]
[1744992162971,22.70048914,132.66,132.61,1.5965]
[1744992163167,31.38859056,132.66,132.61,25.44655697]
[1744992164385,23.85005697,132.7,132.62,7.53979195]
[1744992164588,1.6074,132.72,132.68,23.85005697]
[1744992164589,23.85005697,132.72,132.68,23.85005697]
[1744992164784,23.85005697,132.71,132.67,23.85005697]
[1744992164986,23.85005697,132.71,132.66,25.43725697]
[1744992165189,23.85005697,132.7,132.66,25.43725697]
[1744992165390,23.85005697,132.71,132.66,25.43725697]
[1744992165592,7.53579502,132.7,132.68,23.85005697]
[1744992165793,42.68538073,132.73,132.68,23.85005697]
[1744992165794,7.53465943,132.72,132.68,23.85005697]
[1744992166378,23.85005697,132.74,132.7,23.85005697]
[1744992166586,23.85005697,132.74,132.69,23.85005697]
[1744992167182,23.85005697,132.74,132.71,23.85005697]
[1744992167183,7.53375331,132.74,132.71,23.85005697]
[1744992169112,7.53375331,132.74,132.7,23.85005697]
[1744992170904,31.38381028,132.74,132.69,7.53625951]
[1744992171207,31.38381028,132.74,132.69,23.85005697]
[1744992171381,31.38381028,132.74,132.69,106.75005697]
[1744992172084,0.063,132.75,132.72,23.85005697]
[1744992172497,0.063,132.75,132.73,23.85005697]
[1744992172698,0.063,132.75,132.74,23.85005697]
[1744992176388,0.063,132.75,132.73,25.48945697]
[1744992177211,0.063,132.75,132.73,108.38945697]
[1744992177429,0.063,132.75,132.74,23.85005697]
[1744992178312,0.063,132.75,132.74,114.28358115]
[1744992178522,0.063,132.75,132.74,114.56790429]
[1744992178693,0.063,132.79,132.75,0.14216157]
[1744992179001,0.063,132.79,132.78,23.85005697]
[1744992179310,0.063,132.79,132.78,106.55005697]
[1744992180089,0.063,132.79,132.78,132.46139865]
[1744992180394,0.063,132.8,132.79,82.77916157]
[1744992180594,0.063,132.8,132.79,130.47927551]
[1744992181116,0.063,132.8,132.79,175.41324751]
[1744992181117,1e-08,132.8,132.79,175.41324751]
[1744992181408,1e-08,132.8,132.79,171.72359865]
[1744992182308,1e-08,132.8,132.79,179.2542862]
[1744992182895,1e-08,132.8,132.79,197.90393506]
[1744992183112,0.063,132.83,132.82,26.0]
[1744992183297,0.063,132.83,132.82,49.99221854]
[1744992183813,7.52445447,132.9,132.87,23.85005697]
[1744992185005,7.52416788,132.91,132.87,23.85005697]
[1744992185510,23.91305697,132.92,132.87,23.85005697]
[1744992185511,7.58652803,132.92,132.88,23.85005697]
[1744992185716,31.436585,132.92,132.87,23.85005697]
[1744992186112,7.58652803,132.92,132.88,23.85005697]
[1744992186293,7.58652803,132.92,132.89,23.85005697]
[1744992186493,0.063,132.92,132.89,23.85005697]
[1744992187210,0.063,132.92,132.9,23.85005697]
[1744992187596,0.063,132.92,132.89,23.85005697]
[1744992188111,0.063,132.92,132.9,23.85005697]
[1744992188610,0.063,132.92,132.9,106.48705697]
[1744992189409,0.063,132.92,132.9,82.637]
[1744992189614,23.85005697,132.91,132.87,23.85005697]
[1744992189914,23.85005697,132.91,132.87,82.637]
[1744992190098,0.063,132.92,132.86,14.96]
[1744992190099,23.85005697,132.89,132.86,14.96]
[1744992190292,23.85005697,132.88,132.86,14.96]
[1744992190491,7.52671985,132.86,132.82,14.96]
[1744992190698,31.37677682,132.86,132.82,14.96]
[1744992190903,7.52671985,132.86,132.82,38.81005697]
[1744992191904,31.37677682,132.86,132.82,38.81005697]
[1744992192696,7.52671985,132.86,132.82,38.81005697]
[1744992192908,23.85005697,132.89,132.85,23.85005697]
[1744992193106,30.18905697,132.9,132.85,23.85005697]
[1744992193304,23.85005697,132.89,132.85,23.85005697]
[1744992193709,23.85005697,132.89,132.84,23.85005697]
[1744992194121,31.37507766,132.89,132.84,23.85005697]
[1744992194817,23.85005697,132.88,132.83,23.85005697]
[1744992195118,7.52502069,132.89,132.84,23.85005697]
[1744992195323,31.37507766,132.89,132.84,23.85005697]
[1744992195624,7.52413473,132.91,132.87,23.85005697]
[1744992195826,23.91305697,132.92,132.89,23.85005697]
[1744992195827,7.58659031,132.92,132.89,23.85005697]
[1744992196032,0.063,132.92,132.91,23.85005697]
[1744992198531,0.063,132.92,132.91,31.37394531]
[1744992200430,0.063,132.92,132.91,23.85005697]
[1744992202632,0.063,132.92,132.91,31.37394531]
[1744992203145,0.063,132.92,132.91,31.65826845]
[1744992204509,0.063,132.92,132.89,26.0]
[1744992204715,0.063,132.92,132.9,26.0]
[1744992205231,0.063,132.92,132.9,49.85005697]
[1744992205403,0.063,132.92,132.88,7.80991013]
[1744992205611,23.85005697,132.91,132.87,14.94]
[1744992206010,23.85005697,132.9,132.87,14.94]
[1744992206427,31.37495007,132.9,132.87,14.94]
[1744992207439,23.91305697,132.92,132.87,38.79005697]
[1744992207620,23.85005697,132.91,132.87,14.94]
[1744992207812,23.85005697,132.9,132.87,14.94]
[1744992208408,7.52502069,132.89,132.87,14.94]
[1744992208922,31.37507766,132.89,132.87,14.94]
[1744992210229,7.52472078,132.9,132.87,14.94]
[1744992210528,26.39462803,132.92,132.87,14.94]
[1744992210730,23.85005697,132.9,132.87,14.94]
[1744992211027,23.85005697,132.91,132.87,14.94]
[1744992211433,23.85005697,132.9,132.87,14.94]
[1744992212003,23.85005697,132.91,132.87,14.94]
[1744992212430,26.39462803,132.92,132.87,14.94]
[1744992212729,7.58632229,132.92,132.88,23.85005697]
[1744992213333,31.43637926,132.92,132.87,128.95317766]
[1744992214813,31.43637926,132.92,132.9,23.85005697]
[1744992214814,0.063,132.92,132.9,23.85005697]
[1744992215017,0.063,132.92,132.91,23.85005697]
[1744992215636,0.063,132.92,132.9,106.48705697]
[1744992216425,0.063,132.92,132.91,23.85005697]
[1744992217726,0.063,132.92,132.9,82.637]
[1744992218229,0.063,132.92,132.91,23.85005697]
[1744992218914,0.063,132.92,132.91,31.65826845]
[1744992219439,0.063,132.92,132.91,106.77138011]
[1744992219631,0.063,132.92,132.91,114.29526845]
[1744992220358,0.063,132.92,132.91,82.637]
[1744992224044,0.063,132.92,132.91,106.48705697]
[1744992224342,0.063,132.92,132.91,114.29526845]
[1744992225638,0.063,132.92,132.91,31.65826845]
[1744992227145,0.063,132.92,132.91,31.80043002]
[1744992230445,0.063,132.92,132.9,33.5241594]
[1744992230643,0.063,132.92,132.89,23.85005697]
[1744992230951,0.063,132.92,132.88,46.31564396]
[1744992231329,23.91305697,132.92,132.87,26.0]
[1744992231530,23.91305697,132.92,132.88,14.94]
[1744992232148,0.063,132.92,132.9,23.85005697]
[1744992233255,0.063,132.92,132.91,23.85005697]
[1744992233854,0.063,132.92,132.9,23.85005697]
[1744992235451,0.063,132.92,132.91,23.85005697]
[1744992236149,0.063,132.92,132.91,114.29526845]
[1744992237742,0.063,132.92,132.91,31.65826845]
[1744992238057,0.063,132.92,132.9,49.85005697]
[1744992238750,0.063,132.92,132.9,57.37434954]
[1744992241062,0.063,132.92,132.91,23.85005697]
[1744992242360,0.063,132.92,132.9,33.52419102]
[1744992242558,0.063,132.92,132.91,23.85005697]
[1744992242943,0.063,132.92,132.9,33.52419102]
[1744992243149,0.063,132.92,132.91,23.85005697]
[1744992244260,0.063,132.92,132.9,82.637]
[1744992244852,0.063,132.92,132.9,106.48705697]
[1744992245267,0.063,132.92,132.9,82.637]
[1744992246144,7.58632229,132.92,132.9,82.637]
[1744992246338,23.85005697,132.91,132.9,82.637]
[1744992246870,23.85005697,132.91,132.88,40.94]
[1744992246871,23.85005697,132.91,132.88,14.94]
[1744992247042,23.85005697,132.89,132.86,82.637]
[1744992247460,23.79845016,132.89,132.86,82.637]
[1744992248073,31.37505127,132.9,132.86,82.637]
[1744992248360,21.37505127,132.9,132.86,82.637]
[1744992249369,23.85005697,132.88,132.86,82.637]
[1744992250666,31.37594763,132.88,132.86,82.637]
[1744992250865,23.85005697,132.89,132.86,82.637]
[1744992251966,23.85005697,132.9,132.86,82.637]
[1744992252267,31.37451144,132.9,132.86,82.637]
[1744992252844,23.85005697,132.89,132.86,82.637]
[1744992253053,31.37451144,132.9,132.86,82.637]
[1744992253873,31.37451144,132.9,132.86,106.48705697]
[1744992254049,7.52415658,132.91,132.87,23.85005697]
[1744992254248,30.48965697,132.92,132.88,23.85005697]
[1744992254467,30.48965697,132.92,132.87,23.85005697]
[1744992254776,23.85005697,132.91,132.87,23.85005697]
[1744992255271,31.37434945,132.91,132.87,23.85005697]
[1744992257075,23.85005697,132.9,132.86,82.637]
[1744992257277,7.52429248,132.91,132.86,82.637]
[1744992257278,23.85005697,132.89,132.86,82.637]
[1744992257454,23.85005697,132.9,132.86,82.637]
[1744992258359,23.85005697,132.89,132.86,82.637]
[1744992258561,23.85005697,132.88,132.85,0.03]
[1744992259084,31.3767004,132.87,132.85,0.03]
[1744992260179,7.52664343,132.87,132.85,0.03]
[1744992260680,31.3767004,132.87,132.85,0.03]
[1744992263572,23.85005697,132.86,132.85,0.03]
[1744992265481,31.37677682,132.86,132.85,0.03]
[1744992266358,7.52671985,132.86,132.85,0.03]
[1744992268659,23.85005697,132.88,132.85,0.03]
[1744992268860,23.85005697,132.89,132.85,0.03]
[1744992269269,23.85005697,132.88,132.85,0.03]
[1744992269469,72.91668594,132.86,132.85,0.03]
[1744992269655,73.05884751,132.86,132.85,0.03]
[1744992271092,0.42648471,132.85,132.84,0.03]
[1744992271262,24.27654168,132.85,132.84,0.03]
[1744992272192,31.80382809,132.85,132.84,0.03]
[1744992272374,44.64964886,132.83,132.82,0.03]
[1744992272574,68.49970583,132.83,132.82,0.03]
[1744992273185,49.85005697,132.83,132.82,0.03]
[1744992274485,57.37847675,132.83,132.82,0.03]
[1744992275189,76.02812561,132.83,132.82,0.03]
[1744992276696,76.45461032,132.83,132.82,0.03]
[1744992276896,76.45461032,132.83,132.82,1e-08]
[1744992277191,78.00541032,132.83,132.82,1e-08]
[1744992279189,18.64964886,132.82,132.79,0.03]
[1744992279495,42.49970583,132.8,132.79,0.03]
[1744992281594,50.02982631,132.8,132.79,0.03]
[1744992287114,7.53012048,132.8,132.79,0.03]
[1744992287598,22.75857843,132.8,132.79,0.03]
[1744992294508,22.75820514,132.81,132.79,0.03]
[1744992295462,7.52841978,132.83,132.79,0.03]
[1744992295711,22.75687773,132.83,132.79,0.03]
[1744992296084,22.75687773,132.83,132.79,15.25845795]
[1744992296698,15.22845795,132.85,132.8,15.22845795]
[1744992296911,15.22845795,132.85,132.8,97.86545795]
[1744992297093,0.063,132.88,132.83,15.22845795]
[1744992297294,15.29145795,132.88,132.84,15.22845795]
[1744992297983,0.063,132.88,132.86,15.22845795]
[1744992300421,0.063,132.88,132.85,15.22845795]
[1744992300796,0.063,132.88,132.84,97.70815795]
[1744992301115,0.063,132.88,132.84,106.24455918]
[1744992302318,0.063,132.88,132.84,113.77234963]
[1744992302821,0.063,132.88,132.85,23.76485918]
[1744992303516,0.063,132.88,132.87,23.76485918]
[1744992303923,0.063,132.88,132.87,104.70185918]
[1744992309226,0.063,132.88,132.85,80.937]
[1744992309801,0.063,132.88,132.86,23.76485918]
[1744992310007,0.063,132.88,132.87,23.76485918]
[1744992311334,0.063,132.88,132.86,23.76485918]
[1744992311828,0.063,132.88,132.87,10.0]
[1744992314432,0.063,132.88,132.87,33.76485918]
[1744992315228,0.063,132.88,132.87,10.0]
[1744992315617,0.063,132.88,132.87,41.29101256]
[1744992316335,0.063,132.88,132.87,33.76485918]
[1744992317739,0.063,132.88,132.87,10.0]
[1744992321342,0.063,132.88,132.87,33.76485918]
[1744992321735,0.063,132.88,132.87,41.29101256]
[1744992323126,0.063,132.88,132.87,32.72570862]
[1744992325650,0.063,132.88,132.87,10.0]
[1744992326933,0.063,132.88,132.87,90.937]
[1744992328036,0.063,132.88,132.87,106.13655524]
[1744992328244,0.063,132.88,132.87,113.94703176]
[1744992329858,0.063,132.88,132.87,103.94703176]
[1744992333150,0.063,132.88,132.87,130.08919333]
[1744992333369,0.063,132.88,132.87,148.73884219]
[1744992338576,0.063,132.92,132.89,7.80934383]
[1744992338750,0.063,132.92,132.89,88.68334383]
[1744992338955,0.063,132.92,132.89,80.874]
[1744992339365,0.063,132.92,132.89,96.07355524]
[1744992340469,0.063,132.92,132.89,103.59849344]
[1744992340677,0.063,132.92,132.9,15.19955524]
[1744992342379,0.063,132.92,132.89,88.3989382]
[1744992342574,0.063,132.92,132.89,96.07355524]
[1744992342958,0.063,132.92,132.89,80.874]
[1744992344262,0.063,132.92,132.89,88.39897566]
[1744992344469,0.063,132.92,132.9,15.19955524]
[1744992344666,0.063,132.92,132.9,22.72382491]
[1744992349690,0.063,132.92,132.9,7.52426967]
[1744992349876,0.063,132.92,132.9,22.72382491]
[1744992350278,0.063,132.92,132.9,103.59782491]
[1744992350573,0.063,132.92,132.9,88.39826967]
[1744992350780,0.063,132.92,132.9,80.874]
[1744992350973,0.063,132.92,132.9,88.39842607]
[1744992351175,0.063,132.92,132.9,103.59798131]
[1744992351889,0.063,132.92,132.91,15.19955524]
[1744992352074,0.063,132.92,132.91,15.48387838]
[1744992352469,0.063,132.92,132.91,15.62603995]
[1744992352702,0.063,132.92,132.91,122.67357715]
[1744992352902,0.063,132.93,132.92,125.744972]
[1744992353073,0.063,132.93,132.92,209.5336482]
[1744992353404,0.063,132.93,132.92,148.73542724]
[1744992354187,0.063,132.93,132.92,183.67580977]
[1744992355294,1e-08,132.93,132.92,191.19913206]
[1744992355470,0.063,132.94,132.93,0.42648471]
[1744992355675,0.063,132.94,132.93,76.42426091]
[1744992356388,0.063,132.95,132.93,102.5966661]
[1744992356585,0.063,132.95,132.94,30.56603995]
[1744992356787,0.063,132.99,132.96,20.73403357]
[1744992356977,0.063,132.99,132.97,41.62603995]
[1744992357684,0.063,132.99,132.97,45.45462854]
[1744992358185,0.063,132.99,132.97,41.62603995]
[1744992358495,0.063,132.99,132.97,49.14653329]
[1744992360696,0.063,132.99,132.98,18.933972]
[1744992360899,0.063,132.99,132.98,34.13352724]
[1744992361895,0.063,132.99,132.98,23.14596775]
[1744992362098,0.063,132.99,132.98,103.89396775]
[1744992362875,0.063,132.99,132.98,122.54361661]
[1744992363592,0.03,133.0,132.99,80.748]
[1744992363799,0.063,133.02,133.01,0.14216157]
[1744992364010,0.063,133.02,133.01,67.79392052]
[1744992364385,0.063,133.02,133.01,129.89227166]
[1744992364697,0.063,133.02,133.01,106.748]
[1744992364997,0.063,133.02,133.01,80.748]
[1744992365388,15.26255524,133.02,133.01,80.748]
[1744992365900,22.78022175,133.02,132.99,14.94]
[1744992367279,31.29942194,133.02,132.99,14.94]
[1744992367583,7.58066651,133.02,132.99,14.94]
[1744992367790,0.063,133.02,132.99,103.20713903]
[1744992367992,0.063,133.02,132.99,119.40675543]
[1744992368195,0.063,133.02,133.0,23.71875543]
[1744992369697,0.063,133.02,133.01,23.71875543]
[1744992370414,0.063,133.02,132.99,119.40675543]
[1744992371304,0.063,133.02,132.99,126.92594366]
[1744992372200,0.063,133.02,132.99,136.92594366]
[1744992373109,0.063,133.02,133.0,31.23742016]
[1744992374897,0.063,133.02,133.01,23.71875543]
[1744992375098,0.063,133.02,133.01,31.23698714]
[1744992375885,0.063,133.02,133.01,138.26931028]
[1744992376306,0.063,133.02,133.01,138.41147185]
[1744992377513,0.063,133.02,133.01,157.06112071]
[1744992378087,0.063,133.03,133.02,81.17448471]
[1744992378307,0.063,133.03,133.02,104.89324014]
[1744992378690,0.063,133.03,133.02,130.89324014]
[1744992379097,0.063,133.03,133.02,130.75107857]
[1744992379298,0.063,133.03,133.02,130.46675543]
[1744992380207,0.063,133.03,133.02,80.748]
[1744992380898,0.063,133.03,133.01,80.748]
[1744992386002,0.063,133.03,133.02,23.71875543]
[1744992387915,0.063,133.03,133.02,31.23642194]
[1744992388533,0.063,133.03,133.02,112.12658351]
[1744992388695,0.063,133.03,133.02,131.06055551]
[1744992389925,0.063,133.03,133.02,132.06055551]
[1744992390098,1e-08,133.03,133.02,132.06055551]
[1744992390921,0.063,133.06,133.05,26.0]
[1744992391220,0.063,133.06,133.05,145.528917]
[1744992392614,0.063,133.06,133.05,145.38675543]
[1744992393124,0.063,133.06,133.05,152.90272686]
[1744992400010,0.063,133.06,133.05,145.38675543]
[1744992400205,23.78175543,133.06,133.05,95.668]
[1744992400428,23.78175543,133.06,133.02,80.748]
[1744992401130,23.71875543,133.03,133.01,14.92]
[1744992401310,31.23670561,133.02,132.97,361.12697279]
[1744992401505,7.51795018,133.02,132.98,23.71875543]
[1744992402715,7.51795018,133.02,132.98,31.23857515]
[1744992403117,31.23609783,133.03,132.98,31.23857515]
[1744992403314,7.51597143,133.05,133.0,23.71875543]
[1744992403512,0.063,133.06,133.0,106.748]
[1744992403819,0.063,133.06,133.04,23.71875543]
[1744992405335,0.063,133.06,133.03,57.23557293]
[1744992406137,0.063,133.06,133.04,23.71875543]
[1744992407036,0.063,133.06,133.04,31.23523033]
[1744992407219,0.063,133.06,133.05,23.71875543]
[1744992409631,0.063,133.06,133.05,31.23472686]
[1744992410527,0.063,133.06,133.05,23.71875543]
[1744992410727,0.063,133.06,133.04,111.98301502]
[1744992411051,0.063,133.06,133.04,80.748]
[1744992411356,23.78175543,133.06,133.04,80.748]
[1744992411859,0.063,133.06,133.04,80.748]
[1744992412138,23.78175543,133.06,133.02,103.18541373]
[1744992412344,0.063,133.06,133.02,126.90416916]
[1744992412561,0.063,133.06,133.04,23.71875543]
[1744992412858,0.063,133.06,133.05,23.71875543]
[1744992413018,0.063,133.06,133.05,24.00307857]
[1744992414045,0.063,133.06,133.05,31.51905]
[1744992415143,0.063,133.06,133.05,31.23472686]
[1744992415333,0.063,133.06,133.04,31.23504987]
[1744992416647,0.063,133.06,133.03,57.23574208]
[1744992417746,0.063,133.06,133.03,137.98374208]
[1744992419649,0.063,133.06,133.03,106.748]
[1744992420047,23.78175543,133.06,133.03,106.748]
[1744992420241,23.78175543,133.06,133.03,80.748]
[1744992420542,23.71875543,133.04,133.01,80.748]
[1744992420743,23.71875543,133.02,132.98,103.1875985]
[1744992420946,23.71875543,133.02,132.98,95.668]
[1744992421151,23.71875543,133.0,132.98,95.668]
[1744992421342,23.71875543,132.99,132.98,14.92]
[1744992421549,26.31197243,133.02,132.98,14.92]
[1744992421850,23.71875543,133.0,132.98,14.92]
[1744992422749,23.71875543,133.0,132.97,0.063]
[1744992422750,23.71875543,132.99,132.97,0.063]
[1744992423654,31.23815695,132.99,132.97,0.063]
[1744992424545,23.71875543,132.98,132.97,0.063]
[1744992425441,7.51940152,132.99,132.97,0.063]
[1744992425652,7.51766651,133.02,132.97,0.063]
[1744992425833,23.71875543,133.01,132.97,0.063]
[1744992426238,7.51766651,133.02,132.97,0.063]
[1744992426452,23.71875543,133.0,132.97,0.063]
[1744992427355,31.23701645,133.01,132.97,0.063]
[1744992428251,23.71875543,133.0,132.97,0.063]
[1744992428636,23.71875543,133.01,132.97,0.063]
[1744992429054,31.23599111,133.03,132.98,23.71875543]
[1744992430049,23.71875543,133.02,132.98,23.71875543]
[1744992430359,23.71875543,133.02,132.98,111.98666429]
[1744992431159,31.23599111,133.03,132.98,111.98666429]
[1744992431357,23.71875543,133.03,132.98,111.98666429]
[1744992431656,23.71875543,133.04,133.0,23.71875543]
[1744992431863,31.29744077,133.06,133.01,23.71875543]
[1744992432160,0.063,133.06,133.02,31.23642194]
[1744992432359,0.063,133.06,133.03,23.71875543]
[1744992432943,0.063,133.06,133.02,46.15642194]
[1744992433741,0.063,133.06,133.03,23.71875543]
[1744992433941,0.063,133.06,133.04,23.71875543]
[1744992434141,0.063,133.06,133.04,104.46675543]
[1744992434346,0.063,133.06,133.04,111.98291377]
[1744992438461,18.64964886,133.04,132.97,0.063]
[1744992438660,23.71875543,132.98,132.97,0.063]
[1744992439053,23.71875543,132.99,132.97,0.063]
[1744992440467,31.23831756,132.99,132.97,0.063]
[1744992441145,23.71875543,132.98,132.97,0.063]
[1744992441844,31.23831756,132.99,132.97,0.063]
[1744992442250,23.71875543,132.98,132.97,0.063]
[1744992442854,31.23868323,132.98,132.97,0.063]
[1744992443251,18.79274507,133.04,132.97,0.063]
[1744992443567,18.79274507,133.04,132.98,23.71875543]
[1744992443742,23.71875543,133.02,132.98,23.71875543]
[1744992443947,23.71875543,133.03,132.98,23.71875543]
[1744992444246,23.71875543,133.02,132.98,23.71875543]
[1744992444970,23.71875543,133.02,132.98,104.46675543]
[1744992445664,23.71875543,133.02,132.98,80.748]
[1744992447653,23.71875543,133.01,132.98,80.748]
[1744992450172,7.51749168,133.03,132.98,88.2678094]
[1744992450363,23.71875543,133.02,132.98,88.2678094]
[1744992451150,23.71875543,133.01,132.98,80.748]
[1744992452375,23.71875543,133.01,132.98,88.26791638]
[1744992453074,26.0,133.05,132.98,88.26791638]
[1744992453276,33.51621793,133.05,133.0,23.71875543]
[1744992453486,57.23497336,133.05,133.0,23.71875543]
[1744992453663,23.71875543,133.04,132.99,24.00307857]
[1744992453859,23.71875543,133.03,132.99,0.28432314]
[1744992454061,33.51621793,133.05,132.98,103.18791638]
[1744992454261,23.71875543,133.02,132.98,103.18791638]
[1744992454981,31.23644942,133.02,132.98,103.18791638]
[1744992455779,23.71875543,133.02,132.98,103.18791638]
[1744992459770,0.063,133.06,133.01,26.0]
[1744992459965,0.063,133.06,133.01,130.46675543]
[1744992459966,31.29721774,133.06,133.01,130.46675543]
[1744992460389,23.71875543,133.05,133.01,106.748]
[1744992460879,23.71875543,133.03,133.01,106.748]
[1744992461288,23.71875543,133.03,133.01,80.748]
[1744992461984,23.71875543,133.04,133.01,80.748]
[1744992462376,7.57846231,133.06,133.01,88.2661276]
[1744992462577,23.71875543,133.05,133.01,111.98488303]
[1744992462777,23.71875543,133.04,133.01,80.748]
[1744992462976,23.71875543,133.04,133.01,88.26606961]
[1744992463282,23.71875543,133.04,133.01,80.748]
[1744992463474,23.71875543,133.04,133.01,88.26614672]
[1744992463669,26.0,133.0,132.97,0.063]
[1744992463869,23.71875543,132.98,132.97,0.063]
[1744992464068,31.23868323,132.98,132.97,0.063]
[1744992465177,18.64964886,132.97,132.95,0.063]
[1744992465389,23.71875543,132.96,132.95,0.063]
[1744992466090,31.23981439,132.96,132.95,0.063]
[1744992475773,7.52105896,132.96,132.95,0.063]
[1744992475978,31.23981439,132.96,132.95,0.063]
[1744992476397,7.52105896,132.96,132.95,0.063]
[1744992476599,31.23981439,132.96,132.95,0.063]
[1744992478482,68.69211066,132.96,132.92,0.063]
[1744992478681,47.43751086,132.93,132.92,0.063]
[1744992479381,23.71875543,132.93,132.92,0.063]
[1744992479582,31.24151176,132.93,132.92,0.063]
[1744992479789,54.96026719,132.93,132.92,0.063]
[1744992487208,31.24151176,132.93,132.92,0.063]
[1744992491994,23.71875543,132.93,132.92,0.063]
[1744992492908,31.24151176,132.93,132.92,0.063]
[1744992494317,54.96026719,132.93,132.92,0.063]
[1744992496414,73.60991605,132.93,132.92,1e-08]
[1744992499719,73.60991605,132.93,132.91,0.063]
[1744992500016,23.71875543,132.92,132.91,0.063]
[1744992501109,15.2115042,132.92,132.91,0.063]
[1744992501615,7.52388834,132.91,132.89,0.063]
[1744992501814,15.2115042,132.9,132.89,0.063]
[1744992502918,22.73595867,132.9,132.89,0.063]
[1744992504117,48.73595867,132.9,132.89,0.063]
[1744992507224,67.38560753,132.9,132.89,1e-08]
[1744992507407,18.64964886,132.89,132.87,0.063]
[1744992507603,15.2115042,132.88,132.87,0.063]
[1744992509222,22.73709119,132.88,132.87,0.063]
[1744992528847,7.52558699,132.88,132.87,0.063]
[1744992529024,22.73709119,132.88,132.87,0.063]
[1744992530224,7.52502069,132.89,132.87,0.063]
[1744992530428,15.2115042,132.88,132.87,0.063]
[1744992532457,22.73680335,132.89,132.87,0.063]
[1744992532635,15.2115042,132.89,132.87,0.063]
[1744992533446,22.73658809,132.89,132.87,0.063]
[1744992535643,15.2115042,132.89,132.87,0.063]
[1744992536458,22.73652516,132.89,132.87,0.063]
[1744992539655,15.2115042,132.88,132.87,0.063]
[1744992541733,22.73709119,132.88,132.87,0.063]
[1744992550041,15.2115042,132.88,132.87,0.063]
[1744992550244,22.73678167,132.89,132.87,0.063]
[1744992550441,15.2115042,132.88,132.87,0.063]